fUSD/lending_fUSD_20250826
["ID","MTS","AMOUNT","RATE_DAILY","PERIOD"]
[381511296,1756241507684,-400.0,0.00027671,5]
[381511297,1756241507694,-945.71,0.00027671,5]
[381511298,1756241507703,-1029.74,0.00027671,5]
[381511299,1756241507712,-524.51,0.00027671,5]
[381511300,1756241507722,-202.03,0.00027671,5]
[381511301,1756241507733,-400.0,0.00027671,5]
[381511302,1756241507743,-400.0,0.00027671,5]
[381511303,1756241507752,-400.0,0.00027671,5]
[381511304,1756241507761,-614.98,0.00027671,5]
[381511305,1756241507770,-400.0,0.00027671,5]
[381511306,1756241507780,-386.09215617,0.00027671,5]
[381511307,1756241507790,-400.36787523,0.00027671,5]
[381511308,1756241507800,-400.0,0.00027671,5]
[381511309,1756241507809,-1279.45,0.00027671,5]
[381511310,1756241507819,-1154.1,0.00027671,5]
[381511311,1756241507829,-400.0,0.00027671,5]
[381511312,1756241507838,-537.23,0.00027671,5]
[381511313,1756241507847,-400.0,0.00027671,5]
[381511314,1756241507857,-639.85,0.00027671,5]
[381511315,1756241507866,-400.0,0.00027671,5]
[381511316,1756241507875,-400.0,0.00027671,5]
[381511317,1756241507885,-400.0,0.00027671,5]
[381511318,1756241507894,-400.0,0.00027671,5]
[381511319,1756241507903,-406.12,0.00027671,5]
[381511320,1756241507913,-1117.43,0.00027671,5]
[381511321,1756241507922,-1261.86,0.00027671,5]
[381511322,1756241507931,-710.8,0.00027671,5]
[381511323,1756241507941,-571.67,0.00027671,5]
[381511324,1756241507950,-400.0,0.00027671,5]
[381511325,1756241507959,-400.0,0.00027671,5]
[381511326,1756241507969,-1104.06,0.00027671,5]
[381511327,1756241507978,-400.0,0.00027671,5]
[381511328,1756241507988,-623.4,0.00027671,5]
[381511329,1756241507998,-400.0,0.00027671,5]
[381511330,1756241508007,-559.0,0.00027671,5]
[381511331,1756241508017,-400.0,0.00027671,5]
[381511332,1756241508026,-400.0,0.00027671,5]
[381511333,1756241508035,-1416.77,0.00027671,5]
[381511334,1756241508045,-930.74,0.00027671,5]
[381511335,1756241508054,-1054.6,0.00027671,5]
[381511336,1756241508064,-472.47,0.00027671,5]
[381511337,1756241508075,-400.41607782,0.00027671,5]
[381511338,1756241508084,-400.0,0.00027671,5]
[381511339,1756241508094,-3683.58,0.00027671,5]
[381511340,1756241508104,-1382.97,0.00027671,5]
[381511341,1756241508114,-641.52,0.00027671,5]
[381511342,1756241508124,-1315.85,0.00027671,5]
[381511343,1756241508133,-910.96,0.00027671,5]
[381511344,1756241508143,-400.0,0.00027671,5]
[381511345,1756241508153,-1338.94,0.00027671,5]
[381511346,1756241508162,-400.0,0.00027671,5]
[381511347,1756241508172,-198.96936335,0.00027671,5]
[381511348,1756241508181,-733.69,0.00027671,5]
[381511349,1756241508191,-563.36,0.00027671,5]
[381511350,1756241508200,-450.5,0.00027671,5]
[381511351,1756241508210,-400.0,0.00027671,5]
[381511352,1756241508219,-400.0,0.00027671,5]
[381511353,1756241508229,-698.14,0.00027671,5]
[381511354,1756241508238,-400.0,0.00027671,5]
[381511355,1756241508247,-894.69,0.00027671,5]
[381511356,1756241508257,-400.0,0.00027671,5]
[381511357,1756241508266,-400.0,0.00027671,5]
[381511358,1756241508275,-815.18,0.00027671,5]
[381511359,1756241508285,-745.74,0.00027671,5]
[381511360,1756241508294,-1030.58,0.00027671,5]
[381511361,1756241508304,-689.42,0.00027671,5]
[381511362,1756241508313,-1133.8,0.00027671,5]
[381511363,1756241508323,-526.16,0.00027671,5]
[381511364,1756241508332,-400.0,0.00027671,5]
[381511365,1756241508342,-400.0,0.00027671,5]
[381511366,1756241508351,-444.92,0.00027671,5]
[381511367,1756241508361,-590.63,0.00027671,5]
[381511368,1756241508370,-779.26,0.00027671,5]
[381511369,1756241508380,-425.88,0.00027671,5]
[381511370,1756241508390,-491.89354543,0.00027671,5]
[381511371,1756241508399,-400.0,0.00027671,5]
[381511372,1756241508409,-1316.01,0.00027671,5]
[381511373,1756241508419,-656.29,0.00027671,5]
[381511374,1756241508428,-400.0,0.00027671,5]
[381511375,1756241508438,-1681.38,0.00027671,5]
[381511376,1756241508447,-520.39,0.00027671,5]
[381511377,1756241508457,-849.38,0.00027671,5]
[381511378,1756241508467,-801.99,0.00027671,5]
[381511379,1756241508477,-1126.36,0.00027671,5]
[381511380,1756241508486,-400.0,0.00027671,5]
[381511381,1756241508496,-400.0,0.00027671,5]
[381511382,1756241508505,-580.22,0.00027671,5]
[381511383,1756241508515,-451.13,0.00027671,5]
[381511384,1756241508524,-466.35,0.00027671,5]
[381511385,1756241508534,-400.0,0.00027671,5]
[381511386,1756241508543,-698.14,0.00027671,5]
[381511387,1756241508554,-1159.46,0.00027671,5]
[381511388,1756241508564,-400.0,0.00027671,5]
[381511389,1756241508573,-400.0,0.00027671,5]
[381511390,1756241508583,-581.1,0.00027671,5]
[381511391,1756241508593,-400.0,0.00027671,5]
[381511392,1756241508602,-487.52,0.00027671,5]
[381511393,1756241508612,-400.0,0.00027671,5]
[381511394,1756241508622,-764.62,0.00027671,5]
[381511395,1756241508631,-962.03,0.00027671,5]
[381511396,1756241508641,-1076.23,0.00027671,5]
[381511397,1756241508652,-1297.11,0.00027671,5]
[381511398,1756241508663,-613.4,0.00027671,5]
[381511399,1756241508673,-400.0,0.00027671,5]
[381511400,1756241508682,-400.0,0.00027671,5]
[381511401,1756241508692,-445.83350918,0.00027671,5]
[381511402,1756241508702,-527.54598746,0.00027671,5]
[381511403,1756241508712,-732.53,0.00027671,5]
[381511404,1756241508722,-3151.63,0.00027671,5]
[381511405,1756241508732,-908.12,0.00027671,5]
[381511406,1756241508742,-400.0,0.00027671,5]
[381511407,1756241508752,-946.95,0.00027671,5]
[381511408,1756241508761,-354.25370727,0.00027671,5]
[381511409,1756241508772,-1470.49,0.00027671,5]
[381511410,1756241508782,-969.9,0.00027671,5]
[381511411,1756241508792,-1023.81,0.00027671,5]
[381511412,1756241508802,-472.09,0.00027671,5]
[381511413,1756241508812,-400.0,0.00027671,5]
[381511414,1756241508823,-1482.66,0.00027671,5]
[381511415,1756241508833,-663.29,0.00027671,5]
[381511416,1756241508844,-621.99,0.00027671,5]
[381511417,1756241508854,-770.97,0.00027671,5]
[381511418,1756241508864,-1247.95,0.00027671,5]
[381511419,1756241508874,-400.0,0.00027671,5]
[381511420,1756241508884,-1065.94,0.00027671,5]
[381511421,1756241508894,-747.15,0.00027671,5]
[381511422,1756241509017,-2440.81,0.00027671,5]
[381511423,1756241509029,-577.65,0.00027671,5]
[381511424,1756241509039,-595.27,0.00027671,5]
[381511425,1756241509049,-413.37,0.00027671,5]
[381511426,1756241509058,-684.11,0.00027671,5]
[381511427,1756241509070,-1075.56,0.00027671,5]
[381511428,1756241509080,-1017.67,0.00027671,5]
[381511429,1756241509090,-401.9515022,0.00027671,5]
[381511430,1756241509099,-474.57,0.00027671,5]
[381511431,1756241509109,-400.0,0.00027671,5]
[381511432,1756241509118,-400.0,0.00027671,5]
[381511433,1756241509127,-1768.53,0.00027671,5]
[381511434,1756241509136,-773.11,0.00027671,5]
[381511435,1756241509146,-1280.54,0.00027671,5]
[381511436,1756241509155,-866.02,0.00027671,5]
[381511437,1756241509165,-272.949142,0.00027671,5]
[381511438,1756241509174,-400.0,0.00027671,5]
[381511439,1756241509184,-563.96,0.00027671,5]
[381511440,1756241509193,-400.0,0.00027671,5]
[381511441,1756241509203,-594.99,0.00027671,5]
[381511442,1756241509212,-591.54,0.00027671,5]
[381511443,1756241509222,-1069.03,0.00027671,5]
[381511444,1756241509231,-400.0,0.00027671,5]
[381511445,1756241509240,-544.93,0.00027671,5]
[381511446,1756241509249,-785.29,0.00027671,5]
[381511447,1756241509258,-400.0,0.00027671,5]
[381511448,1756241509267,-400.0,0.00027671,5]
[381511449,1756241509276,-1331.95,0.00027671,5]
[381511450,1756241509285,-400.0,0.00027671,5]
[381511451,1756241509296,-400.0,0.00027671,5]
[381511452,1756241509305,-834.14,0.00027671,5]
[381511453,1756241509314,-1389.58,0.00027671,5]
[381511454,1756241509326,-400.0,0.00027671,5]
[381511455,1756241509335,-942.55,0.00027671,5]
[381511456,1756241509345,-400.0,0.00027671,5]
[381511457,1756241509354,-400.0,0.00027671,5]
[381511458,1756241509363,-400.0,0.00027671,5]
[381511459,1756241509372,-400.0,0.00027671,5]
[381511460,1756241509382,-923.53,0.00027671,5]
[381511461,1756241509391,-518.63,0.00027671,5]
[381511462,1756241509400,-798.92,0.00027671,5]
[381511463,1756241509409,-400.0,0.00027671,5]
[381511464,1756241509418,-400.35,0.00027671,5]
[381511465,1756241509427,-877.81,0.00027671,5]
[381511466,1756241509436,-400.0,0.00027671,5]
[381511467,1756241509446,-432.50159308,0.00027671,5]
[381511468,1756241509455,-1868.59,0.00027671,5]
[381511469,1756241509464,-400.0,0.00027671,5]
[381511470,1756241509473,-400.0,0.00027671,5]
[381511471,1756241509482,-400.0,0.00027671,5]
[381511472,1756241509491,-400.0,0.00027671,5]
[381511473,1756241509500,-949.64,0.00027671,5]
[381511474,1756241509509,-614.91,0.00027671,5]
[381511475,1756241509518,-971.75,0.00027671,5]
[381511476,1756241509527,-451.22829819,0.00027671,5]
[381511477,1756241509536,-747.47,0.00027671,5]
[381511478,1756241509545,-400.0,0.00027671,5]
[381511479,1756241509554,-400.0,0.00027671,5]
[381511480,1756241509563,-410.4,0.00027671,5]
[381511481,1756241509574,-1225.88,0.00027671,5]
[381511482,1756241509583,-2123.87,0.00027671,5]
[381511483,1756241509602,-642.64,0.00027671,5]
[381511484,1756241509612,-817.25,0.00027671,5]
[381511485,1756241509621,-555.41,0.00027671,5]
[381511486,1756241509630,-2134.98,0.00027671,5]
[381511487,1756241509639,-710.23,0.00027671,5]
[381511488,1756241509649,-2146.73,0.00027671,5]
[381511489,1756241509662,-400.0,0.00027671,5]
[381511490,1756241509671,-400.0,0.00027671,5]
[381511491,1756241509680,-2102.22,0.00027671,5]
[381511492,1756241509690,-400.0,0.00027671,5]
[381511493,1756241509700,-568.88,0.00027671,5]
[381511494,1756241509710,-427.24,0.00027671,5]
[381511495,1756241509720,-781.34,0.00027671,5]
[381511496,1756241509731,-821.59,0.00027671,5]
[381511497,1756241509740,-960.62,0.00027671,5]
[381511498,1756241509750,-688.3,0.00027671,5]
[381511499,1756241509760,-682.0,0.00027671,5]
[381511500,1756241509769,-902.89,0.00027671,5]
[381511501,1756241509779,-400.0,0.00027671,5]
[381511502,1756241509788,-400.0,0.00027671,5]
[381511503,1756241509797,-400.0,0.00027671,5]
[381511504,1756241509817,-918.41,0.00027671,5]
[381511505,1756241509838,-692.4,0.00027671,5]
[381511506,1756241509847,-400.0,0.00027671,5]
[381511507,1756241509857,-400.0,0.00027671,5]
[381511508,1756241509866,-922.92,0.00027671,5]
[381511509,1756241509876,-1099.6,0.00027671,5]
[381511510,1756241509885,-1407.87,0.00027671,5]
[381511511,1756241509894,-554.45,0.00027671,5]
[381511512,1756241509903,-150.01,0.00027671,5]
[381511513,1756241509913,-400.0,0.00027671,5]
[381511514,1756241509922,-850.06,0.00027671,5]
[381511515,1756241509931,-567.63,0.00027671,5]
[381511516,1756241509941,-408.56,0.00027671,5]
[381511517,1756241509951,-935.24,0.00027671,5]
[381511518,1756241509960,-400.0,0.00027671,5]
[381511519,1756241509969,-1133.68,0.00027671,5]
[381511520,1756241509979,-3393.52,0.00027671,5]
[381511521,1756241509989,-408.77,0.00027671,5]
[381511522,1756241509998,-400.0,0.00027671,5]
[381511523,1756241510008,-400.0,0.00027671,5]
[381511524,1756241510017,-769.16,0.00027671,5]
[381511525,1756241510027,-1247.48,0.00027671,5]
[381511526,1756241510036,-542.26,0.00027671,5]
[381511527,1756241510046,-400.0,0.00027671,5]
[381511528,1756241510055,-760.54,0.00027671,5]
[381511529,1756241510064,-1132.06,0.00027671,5]
[381511530,1756241510076,-400.0,0.00027671,5]
[381511531,1756241510085,-455.26,0.00027671,5]
[381511532,1756241510094,-1214.03,0.00027671,5]
[381511533,1756241510104,-400.0,0.00027671,5]
[381511534,1756241510113,-954.64,0.00027671,5]
[381511535,1756241510123,-1726.37,0.00027671,5]
[381511536,1756241510132,-642.74,0.00027671,5]
[381511537,1756241510141,-1460.64,0.00027671,5]
[381511538,1756241510150,-1297.46,0.00027671,5]
[381511539,1756241510159,-807.59,0.00027671,5]
[381511540,1756241510168,-887.29,0.00027671,5]
[381511541,1756241510179,-891.62,0.00027671,5]
[381511542,1756241510188,-1963.29,0.00027671,5]
[381511543,1756241510198,-400.0,0.00027671,5]
[381511544,1756241510207,-400.0,0.00027671,5]
[381511545,1756241510216,-726.58,0.00027671,5]
[381511546,1756241510225,-1288.68,0.00027671,5]
[381511547,1756241510235,-490.82919113,0.00027671,5]
[381511548,1756241510244,-400.0,0.00027671,5]
[381511549,1756241510254,-561.6,0.00027671,5]
[381511550,1756241510263,-608.52,0.00027671,5]
[381511551,1756241510273,-400.0,0.00027671,5]
[381511552,1756241510283,-2099.23,0.00027671,5]
[381511553,1756241510292,-400.0,0.00027671,5]
[381511554,1756241510302,-2187.41,0.00027671,5]
[381511555,1756241510312,-1079.39,0.00027671,5]
[381511556,1756241510324,-868.57,0.00027671,5]
[381511557,1756241510333,-450.49,0.00027671,5]
[381511558,1756241510341,-1088.28,0.00027671,5]
[381511559,1756241510349,-824.71,0.00027671,5]
[381511560,1756241510358,-10808.8,0.00027671,5]
[381511561,1756241510367,-591.35,0.00027671,5]
[381511562,1756241510376,-560.88,0.00027671,5]
[381511563,1756241510385,-400.0,0.00027671,5]
[381511564,1756241510394,-2607.87,0.00027671,5]
[381511565,1756241510404,-400.0,0.00027671,5]
[381511566,1756241510414,-1077.53,0.00027671,5]
[381511567,1756241510424,-731.32,0.00027671,5]
[381511568,1756241510434,-521.9,0.00027671,5]
[381511569,1756241510443,-400.0,0.00027671,5]
[381511570,1756241510452,-956.5,0.00027671,5]
[381511571,1756241510461,-485.4,0.00027671,5]
[381511572,1756241510470,-700.82,0.00027671,5]
[381511573,1756241510479,-1384.11,0.00027671,5]
[381511574,1756241510488,-400.0,0.00027671,5]
[381511575,1756241510499,-1046.9,0.00027671,5]
[381511576,1756241510508,-858.68,0.00027671,5]
[381511577,1756241510517,-717.45,0.00027671,5]
[381511578,1756241510526,-400.0,0.00027671,5]
[381511579,1756241510535,-400.0,0.00027671,5]
[381511580,1756241510545,-1157.68,0.00027671,5]
[381511581,1756241510554,-851.79,0.00027671,5]
[381511582,1756241510563,-400.0,0.00027671,5]
[381511583,1756241510572,-1137.16,0.00027671,5]
[381511584,1756241510582,-400.0,0.00027671,5]
[381511585,1756241510591,-721.26,0.00027671,5]
[381511586,1756241510600,-400.0,0.00027671,5]
[381511587,1756241510609,-854.33,0.00027671,5]
[381511588,1756241510619,-717.13,0.00027671,5]
[381511589,1756241510628,-728.67,0.00027671,5]
[381511590,1756241510637,-400.0,0.00027671,5]
[381511591,1756241510647,-400.0,0.00027671,5]
[381511592,1756241510659,-648.09,0.00027671,5]
[381511593,1756241510668,-1454.83,0.00027671,5]
[381511594,1756241510678,-400.0,0.00027671,5]
[381511595,1756241510687,-611.66,0.00027671,5]
[381511596,1756241510697,-400.0,0.00027671,5]
[381511597,1756241510707,-400.0,0.00027671,5]
[381511598,1756241510717,-179.74,0.00027671,5]
[381511599,1756241510727,-400.0,0.00027671,5]
[381511600,1756241510737,-400.0,0.00027671,5]
[381511601,1756241510747,-483.02,0.00027671,5]
[381511602,1756241510756,-513.27,0.00027671,5]
[381511603,1756241510765,-1196.81,0.00027671,5]
[381511604,1756241510774,-400.0,0.00027671,5]
[381511605,1756241510784,-400.0,0.00027671,5]
[381511606,1756241510793,-1391.22,0.00027671,5]
[381511607,1756241510804,-993.22,0.00027671,5]
[381511608,1756241510813,-400.0,0.00027671,5]
[381511609,1756241510824,-400.0,0.00027671,5]
[381511610,1756241510833,-400.0,0.00027671,5]
[381511611,1756241510843,-1436.51,0.00027671,5]
[381511612,1756241510853,-400.0,0.00027671,5]
[381511613,1756241510863,-1722.12,0.00027671,5]
[381511614,1756241510873,-1249.34,0.00027671,5]
[381511615,1756241510883,-400.0,0.00027671,5]
[381511616,1756241510893,-531.01,0.00027671,5]
[381511617,1756241510902,-652.98,0.00027671,5]
[381511618,1756241510912,-1233.81,0.00027671,5]
[381511619,1756241510922,-530.38,0.00027671,5]
[381511620,1756241510932,-556.33,0.00027671,5]
[381511621,1756241510942,-400.0,0.00027671,5]
[381511622,1756241510951,-150.0,0.00027673,5]
[381511623,1756241510961,-155.9612237,0.00027673,5]
[381511624,1756241510970,-22760.65570671,0.00027687,8]
[381511625,1756241510980,-1966.39634687,0.00027694,5]
[381511626,1756241510990,-1182.23,0.00027752,7]
[381511627,1756241510999,-519.0,0.00027754,7]
[381511628,1756241511009,-200.0,0.000278,10]
[381511629,1756241511019,-435.8425876,0.00027801,2]
[381511630,1756241511029,-212.0,0.00027817,7]
[381511631,1756241511038,-9460.0,0.00027845,4]
[381511632,1756241511048,-6294.58211479,0.00027852,2]
[381511633,1756241511058,-164.44854057,0.0002786,2]
[381511634,1756241511067,-302.83,0.0002788,2]
[381511635,1756241511078,-799.59,0.00027889,2]
[381511636,1756241511088,-938.26,0.00027889,2]
[381511637,1756241511097,-799.59,0.00027889,2]
[381511638,1756241511107,-799.59,0.00027889,2]
[381511639,1756241511116,-799.59,0.00027889,2]
[381511640,1756241511126,-1597.56,0.00027889,2]
[381511641,1756241511136,-141858.58269892,0.000279,3]
[381511642,1756241511145,-729794.64578476,0.000279,2]
[381511643,1756241511155,-200.0,0.000279,10]
[381511644,1756241511164,-900.0,0.00027901,10]
[381511645,1756241511174,-900.0,0.00027901,10]
[381511646,1756241511183,-900.0,0.00027901,10]
[381511647,1756241511192,-900.0,0.00027901,10]
[381511648,1756241511201,-900.0,0.00027901,10]
[381511649,1756241511211,-900.0,0.00027901,10]
[381511650,1756241511220,-900.0,0.00027901,10]
[381511651,1756241511229,-900.0,0.00027901,10]
[381511652,1756241511239,-2449.17706946,0.00027921,5]
[381511653,1756241511249,-1000.0,0.00027921,5]
[381511654,1756241511258,-1000.0,0.00027921,5]
[381511655,1756241511268,-1000.0,0.00027921,5]
[381511656,1756241511277,-1000.0,0.00027921,5]
[381511657,1756241511287,-500.8327188,0.00027921,5]
[381511658,1756241511296,-1000.0,0.00027921,5]
[381511659,1756241511306,-500.0,0.00027945,7]
[381511660,1756241511315,-688.412733,0.00027945,5]
[381511661,1756241511325,-346.20496292,0.00027945,5]
[381511662,1756241511334,-400.0,0.00027945,5]
[381511663,1756241511343,-400.0,0.00027945,5]
[381511664,1756241511353,-504.27031964,0.00027945,5]
[381511665,1756241511362,-400.0,0.00027945,5]
[381511666,1756241511371,-400.0,0.00027945,5]
[381511667,1756241511381,-404.56714994,0.00027945,5]
[381511668,1756241511390,-400.0,0.00027945,5]
[381511669,1756241511399,-483.76095277,0.00027945,5]
[381511670,1756241511409,-299.69649872,0.00027945,5]
[381511671,1756241511419,-490.0,0.00027945,5]
[381511672,1756241511428,-400.0,0.00027945,5]
[381511673,1756241511438,-490.0,0.00027945,5]
[381511674,1756241511447,-400.0,0.00027945,5]
[381511675,1756241511456,-446.82,0.00027945,5]
[381511676,1756241511465,-760.76,0.00027945,5]
[381511677,1756241511474,-400.0,0.00027945,5]
[381511678,1756241511483,-400.0,0.00027945,5]
[381511679,1756241511490,-937.42,0.00027945,5]
[381511680,1756241511499,-400.0,0.00027945,5]
[381511681,1756241511508,-644.77,0.00027945,5]
[381511682,1756241511517,-400.0,0.00027945,5]
[381511683,1756241511526,-400.0,0.00027945,5]
[381511684,1756241511535,-400.0,0.00027945,5]
[381511685,1756241511544,-400.0,0.00027945,5]
[381511686,1756241511553,-268.62424474,0.00027945,5]
[381511687,1756241511562,-400.0,0.00027945,5]
[381511688,1756241511571,-611.35,0.00027945,5]
[381511689,1756241511581,-1087.05,0.00027945,5]
[381511690,1756241511590,-400.0,0.00027945,5]
[381511691,1756241511599,-400.0,0.00027945,5]
[381511692,1756241511608,-400.0,0.00027945,5]
[381511693,1756241511617,-400.0,0.00027945,5]
[381511694,1756241511627,-400.0,0.00027945,5]
[381511695,1756241511636,-504.64,0.00027945,5]
[381511696,1756241511645,-201.99825497,0.00027945,5]
[381511697,1756241511655,-400.0,0.00027945,5]
[381511698,1756241511665,-400.0,0.00027945,5]
[381511699,1756241511674,-400.0,0.00027945,5]
[381511700,1756241511683,-418.83,0.00027945,5]
[381511701,1756241511693,-774.06,0.00027945,5]
[381511702,1756241511703,-400.0,0.00027945,5]
[381511703,1756241511713,-845.02,0.00027945,5]
[381511704,1756241511723,-640.61,0.00027945,5]
[381511705,1756241511736,-425.43,0.00027945,5]
[381511706,1756241511746,-400.0,0.00027945,5]
[381511707,1756241511756,-1145.7,0.00027945,5]
[381511708,1756241511765,-620.73,0.00027945,5]
[381511709,1756241511775,-400.0,0.00027945,5]
[381511710,1756241511785,-720.43,0.00027945,5]
[381511711,1756241511795,-555.0,0.00027945,5]
[381511712,1756241511805,-1412.4,0.00027945,5]
[381511713,1756241511815,-1006.36,0.00027945,5]
[381511714,1756241511828,-400.0,0.00027945,5]
[381511715,1756241511838,-400.0,0.00027945,5]
[381511716,1756241511847,-544.04,0.00027945,5]
[381511717,1756241511857,-400.0,0.00027945,5]
[381511718,1756241511867,-479.76,0.00027945,5]
[381511719,1756241511878,-433.83,0.00027945,5]
[381511720,1756241511888,-400.0,0.00027945,5]
[381511721,1756241511898,-595.9,0.00027945,5]
[381511722,1756241511908,-609.98,0.00027945,5]
[381511723,1756241511918,-400.0,0.00027945,5]
[381511724,1756241511928,-400.0,0.00027945,5]
[381511725,1756241511938,-400.0,0.00027945,5]
[381511726,1756241511948,-400.0,0.00027945,5]
[381511727,1756241511962,-708.57,0.00027945,5]
[381511728,1756241511972,-400.0,0.00027945,5]
[381511729,1756241511982,-400.0,0.00027945,5]
[381511730,1756241511992,-400.0,0.00027945,5]
[381511731,1756241512002,-713.14,0.00027945,5]
[381511732,1756241512012,-793.45,0.00027945,5]
[381511733,1756241512023,-400.0,0.00027945,5]
[381511734,1756241512033,-949.54,0.00027945,5]
[381511735,1756241512043,-400.0,0.00027945,5]
[381511736,1756241512052,-400.0,0.00027945,5]
[381511737,1756241512062,-1047.47,0.00027945,5]
[381511738,1756241512072,-400.0,0.00027945,5]
[381511739,1756241512081,-733.69,0.00027945,5]
[381511740,1756241512091,-504.78,0.00027945,5]
[381511741,1756241512101,-400.0,0.00027945,5]
[381511742,1756241512110,-2000.0,0.00027945,30]
[381511743,1756241512120,-1082.8,0.00027945,5]
[381511744,1756241512130,-400.0,0.00027945,5]
[381511745,1756241512139,-400.0,0.00027945,5]
[381511746,1756241512149,-352.35983991,0.00027945,5]
[381511747,1756241512159,-906.45,0.00027945,5]
[381511748,1756241512169,-698.34,0.00027945,5]
[381511749,1756241512181,-400.0,0.00027945,5]
[381511750,1756241512193,-400.0,0.00027945,5]
[381511751,1756241512204,-437.18,0.00027945,5]
[381511752,1756241512214,-861.01,0.00027945,5]
[381511753,1756241512224,-788.89,0.00027945,5]
[381511754,1756241512234,-746.55,0.00027945,5]
[381511755,1756241512244,-724.53,0.00027945,5]
[381511756,1756241512253,-406.48,0.00027945,5]
[381511757,1756241512263,-400.0,0.00027945,5]
[381511758,1756241512273,-400.0,0.00027945,5]
[381511759,1756241512283,-1276.72,0.00027945,5]
[381511760,1756241512293,-400.0,0.00027945,5]
[381511761,1756241512303,-420.65,0.00027945,5]
[381511762,1756241512312,-400.0,0.00027945,5]
[381511763,1756241512322,-582.17,0.00027945,5]
[381511764,1756241512334,-400.0,0.00027945,5]
[381511765,1756241512344,-400.0,0.00027945,5]
[381511766,1756241512353,-665.66,0.00027945,5]
[381511767,1756241512363,-765.82,0.00027945,5]
[381511768,1756241512373,-400.0,0.00027945,5]
[381511769,1756241512383,-1400.92,0.00027945,5]
[381511770,1756241512392,-417.05,0.00027945,5]
[381511771,1756241512402,-400.0,0.00027945,5]
[381511772,1756241512411,-400.0,0.00027945,5]
[381511773,1756241512422,-479.39,0.00027945,5]
[381511774,1756241512431,-400.0,0.00027945,5]
[381511775,1756241512441,-603.27,0.00027945,5]
[381511776,1756241512451,-400.0,0.00027945,5]
[381511777,1756241512462,-954.1,0.00027945,5]
[381511778,1756241512471,-742.44,0.00027945,5]
[381511779,1756241512481,-400.0,0.00027945,5]
[381511780,1756241512491,-400.0,0.00027945,5]
[381511781,1756241512501,-800.07,0.00027945,5]
[381511782,1756241512510,-400.0,0.00027945,5]
[381511783,1756241512520,-400.0,0.00027945,5]
[381511784,1756241512530,-217.24,0.00027945,5]
[381511785,1756241512540,-448.95,0.00027945,5]
[381511786,1756241512550,-413.49,0.00027945,5]
[381511787,1756241512560,-11416.62,0.00027945,5]
[381511788,1756241512570,-256.05075673,0.00027945,5]
[381511789,1756241512581,-496.62,0.00027945,5]
[381511790,1756241512591,-400.0,0.00027945,5]
[381511791,1756241512600,-400.0,0.00027945,5]
[381511792,1756241512609,-401.79393068,0.00027945,5]
[381511793,1756241512619,-1047.34,0.00027945,5]
[381511794,1756241512629,-618.16,0.00027945,5]
[381511795,1756241512639,-490.0,0.00027945,5]